bitfinex-derivatives/quotes_SOLF0:USTF0_20241120
["timestamp","ask_amount","ask_price","bid_price","bid_amount"]
[1732100759255,4.6574,236.15,236.02,10.3107714]
[1732100760155,2.2,236.14,236.02,10.3107714]
[1732100760959,2.2,236.17,235.99,1.2748]
[1732100761154,2.2,236.17,236.01,10.3107714]
[1732100762257,2.2,236.17,236.04,10.3107714]
[1732100762452,10.3107714,236.22,236.07,10.3107714]
[1732100762652,2.2,236.21,236.08,1.2907]
[1732100763251,2.2,236.21,235.99,2.14440371]
[1732100763455,2.2,236.21,236.07,10.3107714]
[1732100763753,2.2,236.21,236.04,10.3107714]
[1732100765261,2.2,236.21,236.0,3.4907]
[1732100765460,2.2,236.21,236.05,10.3107714]
[1732100767359,7.88490013,236.2,236.05,10.3107714]
[1732100768859,6.60786351,236.19,236.1,6.60786351]
[1732100769058,2.2,236.21,236.1,6.60786351]
[1732100769361,8.80786351,236.2,236.12,6.60786351]
[1732100769659,6.60786351,236.2,236.12,6.60786351]
[1732100769856,2.2,236.19,236.12,6.60786351]
[1732100770752,8.80786351,236.19,236.03,2.2]
[1732100770952,6.60786351,236.17,236.0,1.2907]
[1732100771152,6.60786351,236.17,236.08,6.60786351]
[1732100771353,6.60786351,236.17,236.1,6.60786351]
[1732100771557,8.80786351,236.19,236.1,6.60786351]
[1732100772163,8.80786351,236.19,236.12,6.60786351]
[1732100772164,2.2,236.19,236.12,6.60786351]
[1732100772666,2.2,236.19,236.0,1.2907]
[1732100772667,2.2,236.19,236.14,6.60786351]
[1732100773457,2.2,236.21,236.14,6.60786351]
[1732100774158,2.2,236.21,236.17,6.60786351]
[1732100776193,9.81642249,236.24,236.17,6.60786351]
[1732100776469,2.2,236.21,236.17,6.60786351]
[1732100777877,9.81211344,236.24,236.17,6.60786351]
[1732100778176,10.08788656,236.23,236.17,6.60786351]
[1732100778380,2.2,236.22,236.17,6.60786351]
[1732100778563,2.2,236.22,236.1,1.293]
[1732100778805,2.2,236.22,236.16,6.60786351]
[1732100779081,6.60786351,236.21,236.11,6.60786351]
[1732100780046,6.60786351,236.21,236.13,6.60786351]
[1732100781564,2.2,236.22,236.13,6.60786351]
[1732100781574,8.80786351,236.22,236.13,6.60786351]
[1732100782679,2.2,236.22,236.15,6.60786351]
[1732100783391,6.60786351,236.2,236.1,1.293]
[1732100783772,6.60786351,236.2,236.13,6.60786351]
[1732100783995,6.60786351,236.2,236.11,6.60786351]
[1732100784373,17.68873068,236.19,236.11,6.60786351]
[1732100784576,7.88359666,236.18,236.11,6.60786351]
[1732100784987,7.88359666,236.19,236.11,6.60786351]
[1732100785283,7.88196618,236.18,236.11,6.60786351]
[1732100785674,6.60786351,236.2,236.11,6.60786351]
[1732100785871,26.20774624,236.19,236.11,6.60786351]
[1732100786074,24.2932999,236.18,236.11,6.60786351]
[1732100786275,17.68543639,236.17,236.05,2.2]
[1732100786561,10.10186532,236.16,236.1,6.60786351]
[1732100786675,2.22,236.16,236.1,6.60786351]
[1732100786867,8.82786351,236.16,235.99,1.2985]
[1732100787163,6.60786351,236.14,236.05,6.60786351]
[1732100787304,24.2781842,236.13,236.05,6.60786351]
[1732100787592,7.87535138,236.12,236.05,6.60786351]
[1732100787792,7.87535138,236.12,235.99,1.2985]
[1732100787970,7.87535138,236.14,236.06,6.60786351]
[1732100788174,9.7928877,236.13,236.06,6.60786351]
[1732100788579,7.87535138,236.12,235.99,1.2985]
[1732100788688,7.87535138,236.12,236.05,6.60786351]
[1732100789981,6.60786351,236.11,235.99,1.2985]
[1732100790193,6.60786351,236.09,236.01,6.60786351]
[1732100791083,6.60786351,236.07,235.86,17.61593223]
[1732100791282,6.60786351,236.07,235.87,3.4863]
[1732100791588,6.60786351,236.05,235.96,6.60786351]
[1732100791895,10.08452114,236.04,235.96,6.60786351]
[1732100792088,6.60786351,235.99,235.92,6.60786351]
[1732100792493,6.60786351,235.97,235.79,2.22]
[1732100792529,2.22,235.96,235.89,6.60786351]
[1732100792987,2.22,235.96,235.8,1.2296]
[1732100792996,6.60786351,235.95,235.87,6.60786351]
[1732100793448,6.60786351,235.95,235.8,1.2296]
[1732100793481,6.60786351,235.91,235.83,6.60786351]
[1732100793808,2.22,235.9,235.64,23.47447243]
[1732100793821,2.22,235.9,235.84,6.60786351]
[1732100794042,2.22,235.9,235.86,6.60786351]
[1732100794311,2.22,235.9,235.74,1.2296]
[1732100794486,2.22,235.9,235.85,6.60786351]
[1732100794692,1.1875,235.94,235.82,10.34761409]
[1732100794896,2.22,235.93,235.85,10.34761409]
[1732100795222,2.22,235.93,235.76,2.22]
[1732100795383,2.22,235.93,235.84,10.34761409]
[1732100798417,1.1875,235.94,235.84,10.34761409]
[1732100798578,2.22,235.92,235.84,10.34761409]
[1732100798878,2.22,235.93,235.87,10.34761409]
[1732100802784,2.22,235.98,235.9,10.34761409]
[1732100803082,2.22,236.01,235.94,10.34761409]
[1732100803279,2.22,236.01,235.97,10.34761409]
[1732100803477,2.22,236.01,235.89,2.22]
[1732100803768,2.22,236.01,235.96,10.34761409]
[1732100804484,10.34761409,236.1,235.96,10.34761409]
[1732100804682,2.22,236.09,235.97,1.1976]
[1732100805395,10.34761409,236.1,235.97,1.1976]
[1732100805396,2.22,236.08,235.97,1.1976]
[1732100805582,2.22,236.07,235.97,1.1976]
[1732100805783,2.22,236.08,235.97,1.1976]
[1732100806291,0.3191,236.05,235.99,10.34761409]
[1732100808448,0.3191,236.05,235.95,10.34761409]
[1732100808800,0.3191,236.05,235.92,2.22]
[1732100808999,0.3191,236.05,235.95,10.34761409]
[1732100809414,0.3191,236.05,235.92,10.34761409]
[1732100810573,10.34761409,236.04,235.89,10.34761409]
[1732100810737,4.7666,236.03,235.89,10.34761409]
[1732100812521,4.7666,236.03,235.88,1.2398]
[1732100812522,4.7666,236.03,235.92,10.34761409]
[1732100813289,4.7666,236.03,235.89,10.34761409]
[1732100814083,10.34761409,236.01,235.66,23.36716112]
[1732100814387,10.34761409,235.98,235.83,10.34761409]
[1732100814622,2.22,235.97,235.83,10.34761409]
[1732100815416,10.34761409,235.98,235.83,10.34761409]
[1732100815603,2.22,235.97,235.83,10.34761409]
[1732100817104,2.22,235.97,235.85,10.34761409]
[1732100818640,10.34761409,236.01,235.88,10.34761409]
[1732100818641,2.28,235.96,235.88,10.34761409]
[1732100820679,2.28,235.96,235.76,2.28]
[1732100820893,2.28,235.96,235.83,10.34761409]
[1732100822628,2.28,235.96,235.8,10.34761409]
[1732100823913,10.34761409,235.94,235.77,1.2861]
[1732100824251,10.34761409,235.94,235.77,11.63371409]
[1732100824252,2.4549,235.93,235.77,11.63371409]
[1732100824907,10.34761409,235.91,235.77,11.63371409]
[1732100825124,2.28,235.9,235.77,11.63371409]
[1732100825317,2.28,235.9,235.74,10.34761409]
[1732100825624,10.34761409,235.88,235.74,10.34761409]
[1732100827324,10.34761409,235.88,235.71,10.34761409]
[1732100827521,10.34761409,235.88,235.74,10.34761409]
[1732100827708,1.0,235.87,235.74,10.34761409]
[1732100828641,2.28,235.86,235.74,10.34761409]
[1732100829329,1.0,235.87,235.74,10.34761409]
[1732100829598,2.28,235.86,235.74,10.34761409]
[1732100830417,1.0,235.87,235.74,10.34761409]
[1732100830617,2.28,235.86,235.74,10.34761409]
[1732100832804,2.28,235.86,235.69,1.2642]
[1732100833113,2.28,235.86,235.73,10.34761409]
[1732100834810,2.28,235.86,235.7,10.34761409]
[1732100835915,11.34761409,235.87,235.73,10.34761409]
[1732100836118,2.28,235.85,235.73,10.34761409]
[1732100836756,2.28,235.86,235.76,10.34761409]
[1732100838021,10.34761409,235.9,235.76,10.34761409]
[1732100838022,2.28,235.89,235.76,10.34761409]
[1732100838911,2.28,235.88,235.76,10.34761409]
[1732100840344,2.28,235.88,235.73,10.34761409]
[1732100840664,2.28,235.88,235.69,1.2642]
[1732100840843,2.28,235.88,235.74,10.34761409]
[1732100844720,6.62452192,235.87,235.79,6.62452192]
[1732100846831,2.3,235.86,235.79,6.62452192]
[1732100848418,2.3,235.86,235.77,6.62452192]
[1732100848419,6.62452192,235.85,235.77,6.62452192]
[1732100849616,2.3,235.86,235.69,1.2642]
[1732100849617,6.62452192,235.83,235.69,1.2642]
[1732100849818,6.62452192,235.83,235.75,6.62452192]
[1732100850226,2.3,235.86,235.73,6.62452192]
[1732100850426,6.62452192,235.81,235.69,1.2642]
[1732100850620,2.3,235.8,235.73,6.62452192]
[1732100851132,2.3,235.8,235.64,17.63268215]
[1732100851133,6.62452192,235.79,235.64,17.63268215]
[1732100851314,6.62452192,235.77,235.71,6.62452192]
[1732100851511,8.92452192,235.8,235.71,6.62452192]
[1732100852143,8.92452192,235.8,235.64,19.93268215]
[1732100852332,8.92452192,235.8,235.72,6.62452192]
[1732100852625,8.92452192,235.8,235.64,19.93268215]
[1732100852820,1.2071,235.79,235.71,6.62452192]
[1732100853224,6.62452192,235.78,235.71,6.62452192]
[1732100853432,1.2071,235.79,235.73,6.62452192]
[1732100855828,1.2071,235.79,235.71,6.62452192]
[1732100856739,6.62452192,235.76,235.64,19.93268215]
[1732100857035,6.62452192,235.76,235.68,6.62452192]
[1732100858441,2.3,235.76,235.7,6.62452192]
[1732100859827,13.9174,235.93,235.72,6.62452192]
[1732100860129,6.62452192,235.8,235.72,6.62452192]
[1732100860340,8.92452192,235.8,235.72,6.62452192]
[1732100860902,6.62452192,235.78,235.72,6.62452192]
[1732100861046,6.62452192,235.78,235.71,6.62452192]
[1732100861229,6.62452192,235.76,235.61,3.6153]
[1732100861641,6.62452192,235.76,235.67,6.62452192]
[1732100861844,6.62452192,235.76,235.61,3.6153]
[1732100861845,6.62452192,235.76,235.69,6.62452192]
[1732100863844,2.3,235.8,235.69,6.62452192]
[1732100864034,2.475,235.88,235.73,6.62452192]
[1732100864238,6.62452192,235.8,235.73,6.62452192]
[1732100864430,8.92452192,235.8,235.71,6.62452192]
[1732100865664,8.92452192,235.8,235.63,2.3]
[1732100865934,0.44724,235.88,235.74,6.62452192]
[1732100866138,6.62452192,235.83,235.75,1.2689]
[1732100866643,6.62452192,235.81,235.75,1.2689]
[1732100867450,4.7713,235.87,235.75,7.89342192]
[1732100867736,6.62452192,235.83,235.75,7.89342192]
[1732100868251,6.62452192,235.81,235.75,1.2689]
[1732100868433,4.7713,235.87,235.75,1.2689]
[1732100868634,4.7713,235.87,235.75,7.89342192]
[1732100868937,6.62452192,235.83,235.75,7.89342192]
[1732100869541,1.221,235.87,235.79,6.62452192]
[1732100869764,7.07176192,235.88,235.79,6.62452192]
[1732100870642,7.07176192,235.88,235.81,6.62452192]
[1732100870838,7.07176192,235.88,235.77,2.3]
[1732100871139,7.07176192,235.88,235.8,6.62452192]
[1732100871533,0.44724,235.88,235.82,6.62452192]
[1732100873746,0.44724,235.88,235.84,6.62452192]
[1732100874442,0.44724,235.88,235.87,6.62452192]
[1732100874942,3.5501,235.96,235.87,6.62452192]
[1732100875135,3.5501,235.96,235.83,2.3]
[1732100875347,2.3,235.98,235.91,6.62452192]
[1732100875773,2.3,235.98,235.93,6.62452192]
[1732100877035,2.3,235.98,235.95,6.62452192]
[1732100877550,3.5417,236.02,235.95,6.62452192]
[1732100878754,3.5417,236.02,235.9,6.62452192]
[1732100878755,6.62452192,235.99,235.9,6.62452192]
[1732100879142,3.5417,236.02,235.9,6.62452192]
[1732100879368,6.62452192,235.99,235.92,6.62452192]
[1732100879542,6.62452192,236.01,235.94,6.62452192]
[1732100881562,3.5417,236.02,235.94,6.62452192]
[1732100881853,3.5417,236.02,235.96,6.62452192]
[1732100882264,1.2617,236.02,235.95,6.62452192]
[1732100882458,7.88622192,236.02,235.95,6.62452192]
[1732100882653,7.88622192,236.02,235.93,6.62452192]
[1732100883339,6.62452192,236.0,235.87,2.28]
[1732100883492,6.62452192,236.0,235.92,6.62452192]
[1732100884249,7.88622192,236.02,235.94,6.62452192]
[1732100885261,1.2617,236.02,235.94,6.62452192]
[1732100886953,6.62452192,235.99,235.86,2.28]
[1732100887148,6.62452192,236.01,235.92,6.62452192]
[1732100887349,6.62452192,236.01,235.94,6.62452192]
[1732100889058,6.62452192,236.01,235.86,2.28]
[1732100889311,6.62452192,236.01,235.93,6.62452192]
[1732100891558,1.2617,236.02,235.93,6.62452192]
[1732100891756,6.62452192,236.02,235.93,6.62452192]
[1732100892154,3.4958,236.03,235.95,6.62452192]
[1732100892772,1.2158,236.03,235.99,6.62452192]
[1732100893359,1.2158,236.03,235.98,6.62452192]
[1732100893767,2.28,236.06,236.0,6.62452192]
[1732100896069,8.90452192,236.06,235.93,1.2268]
[1732100896383,8.90452192,236.06,235.98,6.62452192]
[1732100896564,6.62452192,236.04,235.96,6.62452192]
[1732100896960,6.62452192,236.04,235.92,2.28]
[1732100897163,1.2605,236.03,235.94,6.62452192]
[1732100898501,6.62452192,236.02,235.94,6.62452192]
[1732100898685,6.62452192,236.02,235.92,6.62452192]
[1732100898876,6.62452192,236.0,235.92,6.62452192]
[1732100899158,2.28,236.0,235.92,6.62452192]
[1732100900144,2.28,236.0,235.94,6.62452192]
[1732100901029,2.28,236.0,235.92,6.62452192]
[1732100901043,6.62452192,235.99,235.92,6.62452192]
[1732100901408,2.28,236.0,235.92,6.62452192]
[1732100901417,8.90452192,236.0,235.92,6.62452192]
[1732100901770,2.28,236.0,235.92,6.62452192]
[1732100902813,2.28,236.0,235.87,2.28]
[1732100902997,2.28,236.0,235.85,1.2108]
[1732100903195,2.28,236.0,235.92,6.62452192]
[1732100904228,1.2605,236.03,235.96,6.62452192]
[1732100904587,43.22,236.19,236.0,6.62452192]
[1732100904784,43.22,236.19,235.98,6.62452192]
[1732100904785,6.62452192,236.08,235.98,6.62452192]
[1732100904981,6.62452192,236.06,235.98,6.62452192]
[1732100905178,2.28,236.07,235.98,6.62452192]
[1732100905367,2.28,236.07,236.0,6.62452192]
[1732100905619,2.28,236.07,236.02,6.62452192]
[1732100906731,2.28,236.11,236.02,6.62452192]
[1732100906886,2.26,236.1,236.04,6.62452192]
[1732100907204,2.5921,236.16,236.06,6.62452192]
[1732100907205,6.62452192,236.14,236.06,6.62452192]
[1732100907383,2.26,236.13,236.08,6.62452192]
[1732100908177,2.26,236.15,236.08,6.62452192]
[1732100908511,2.5921,236.16,236.12,6.62452192]
[1732100908523,8.88452192,236.21,236.12,6.62452192]
[1732100908803,2.4828,236.22,236.14,6.62452192]
[1732100908980,2.26,236.21,236.14,6.62452192]
[1732100909410,2.26,236.21,236.16,6.62452192]
[1732100909936,2.4828,236.22,236.18,6.62452192]
[1732100910486,2.4828,236.22,236.12,2.26]
[1732100910675,2.4828,236.22,236.1,10.32107037]
[1732100910993,12.80387037,236.22,236.08,2.26]
[1732100911677,12.80387037,236.22,236.07,11.59147037]
[1732100911995,10.32107037,236.16,235.93,2.26]
[1732100912201,10.32107037,236.13,235.96,10.32107037]
[1732100912873,10.32107037,236.13,235.99,10.32107037]
[1732100913408,3.5597,236.15,235.99,10.32107037]
[1732100913613,2.26,236.14,236.02,10.32107037]
[1732100913779,1.2997,236.15,236.02,10.32107037]
[1732100913976,2.26,236.14,236.05,10.32107037]
[1732100914274,2.26,236.18,236.08,10.32107037]
[1732100914915,2.26,236.2,236.11,10.32107037]
[1732100915158,2.4828,236.22,236.11,10.32107037]
[1732100915704,2.26,236.23,236.08,1.2975]
[1732100915705,2.26,236.23,236.14,10.32107037]
[1732100915891,2.26,236.23,236.08,1.2975]
[1732100915892,2.26,236.26,236.17,10.32107037]
[1732100916595,4.7825,236.26,236.17,10.32107037]
[1732100917820,15.10357037,236.26,236.11,10.32107037]
[1732100917999,10.32107037,236.23,236.08,11.61857037]
[1732100918185,4.7825,236.26,236.08,11.61857037]
[1732100918607,10.32107037,236.21,236.08,11.61857037]
[1732100918614,2.26,236.2,236.08,11.61857037]
[1732100918778,2.26,236.2,236.04,10.32107037]
[1732100920644,2.26,236.2,236.07,10.32107037]
[1732100921218,2.26,236.2,236.03,2.26]
[1732100921219,2.26,236.2,236.1,10.32107037]
[1732100921889,2.26,236.21,236.13,10.32107037]
[1732100921912,1.0,236.25,236.13,10.32107037]
[1732100921924,2.26,236.23,236.1,11.51747037]
[1732100923484,1.0,236.25,236.13,10.32107037]
[1732100923685,2.26,236.24,236.13,10.32107037]
[1732100925582,2.26,236.24,236.16,10.32107037]
[1732100925885,2.5225,236.26,235.88,23.36716112]
[1732100925886,10.32107037,236.22,235.88,23.36716112]
[1732100926196,15.10357037,236.26,236.02,10.32107037]
[1732100926197,10.32107037,236.18,236.02,10.32107037]
[1732100926487,2.26,236.17,236.02,10.32107037]
[1732100926687,2.26,236.17,236.03,0.64083]
[1732100927088,2.4194,236.16,236.03,0.64083]
[1732100928034,2.4194,236.16,236.03,1.95263]
[1732100928390,3.6563,236.16,236.03,0.64083]
[1732100930320,2.26,236.15,236.03,0.64083]
[1732100931304,2.4194,236.16,236.03,0.64083]
[1732100931589,2.26,236.15,236.03,0.64083]
[1732100932497,2.26,236.15,236.06,10.32107037]
[1732100934403,2.26,236.17,236.06,10.32107037]
[1732100934892,3.7863,236.22,236.1,10.32107037]
[1732100935103,2.26,236.21,236.1,10.32107037]
[1732100935415,2.5156,236.22,236.13,10.32107037]
[1732100935699,10.32107037,236.29,236.13,10.32107037]
[1732100935908,2.26,236.28,236.16,10.32107037]
[1732100936101,2.26,236.27,236.16,10.32107037]
[1732100936421,2.32,236.29,236.19,10.32107037]
[1732100936599,2.5418,236.34,236.19,10.32107037]
[1732100936913,2.5418,236.34,236.22,10.32107037]
[1732100937109,2.32,236.33,236.22,10.32107037]
[1732100937299,2.32,236.32,236.22,10.32107037]
[1732100938060,2.32,236.32,236.19,10.32107037]
[1732100938233,12.64107037,236.32,236.16,10.32107037]
[1732100941356,10.32107037,236.29,236.12,10.32107037]
[1732100942203,10.32107037,236.26,236.12,10.32107037]
[1732100942453,2.32,236.25,236.12,10.32107037]
[1732100942737,2.5326,236.24,236.12,10.32107037]
[1732100943010,2.5326,236.24,236.09,10.32107037]
[1732100943207,10.32107037,236.23,236.09,10.32107037]
[1732100944055,3.7499,236.24,236.09,10.32107037]
[1732100944232,2.5326,236.24,236.12,10.32107037]
[1732100944419,2.32,236.23,236.12,10.32107037]
[1732100945001,4.8526,236.24,236.12,10.32107037]
[1732100945409,2.32,236.31,236.18,10.32107037]
[1732100946700,10.32107037,236.29,236.15,10.32107037]
[1732100946910,10.32107037,236.26,236.12,2.32]
[1732100947105,4.8911,236.25,236.09,10.32107037]
[1732100947305,6.1627,236.25,236.09,10.32107037]
[1732100948204,6.1627,236.25,236.08,2.32]
[1732100948205,6.1627,236.25,236.12,10.32107037]
[1732100948475,2.5711,236.25,236.15,10.32107037]
[1732100948617,2.32,236.26,236.15,16.50361621]
[1732100949080,2.5711,236.31,236.15,16.50361621]
[1732100949302,2.32,236.34,236.19,16.50361621]
[1732100949507,2.32,236.34,236.2,3.5837]
[1732100950820,2.32,236.34,236.2,1.2637]
[1732100952414,2.32,236.34,236.15,18.82361621]
[1732100953815,7.85445729,236.33,236.11,16.50361621]
[1732100954026,16.50361621,236.31,236.11,16.50361621]
[1732100954313,7.85445729,236.3,236.11,16.50361621]
[1732100954815,8.85445729,236.3,236.11,16.50361621]
[1732100955820,16.50361621,236.27,236.07,17.77251621]
[1732100956113,13.92975729,236.26,236.07,17.77251621]
[1732100956308,6.0753,236.26,236.07,17.77251621]
[1732100956555,16.50361621,236.23,236.07,1.2689]
[1732100956707,7.85051966,236.22,236.06,1.45119]
[1732100958115,9.76161137,236.21,236.06,1.45119]
[1732100958421,2.32,236.2,236.06,1.45119]
[1732100958912,7.84654191,236.19,236.06,1.45119]
[1732100959323,1.0,236.21,236.06,1.45119]
[1732100959531,2.32,236.18,236.06,1.45119]
[1732100965403,16.50361621,236.15,236.06,1.45119]
[1732100965623,1.2631,236.14,236.06,1.45119]
[1732100965824,3.8816,236.14,236.06,1.45119]
[1732100968638,3.8816,236.14,235.95,16.50361621]
[1732100970628,16.50361621,236.11,235.93,1.287]
[1732100971026,2.32,236.1,235.93,1.287]
[1732100971778,2.32,236.1,235.96,1.35516]
[1732100978169,16.50361621,236.07,235.96,1.35516]
[1732100978728,10.33895755,236.05,235.96,1.35516]
[1732100978937,4.8014,236.04,235.96,1.35516]
[1732100979530,10.33895755,235.99,235.96,1.35516]
[1732100979859,2.32,235.98,235.83,12.65895755]
[1732100980140,2.32,235.98,235.83,10.33895755]
[1732100980505,10.33895755,235.96,235.83,10.33895755]
[1732100981008,10.33895755,235.96,235.81,1.3032]
[1732100981032,1.2937,235.95,235.81,1.3032]
[1732100981617,1.2937,235.95,235.78,1.2684]
[1732100981618,10.33895755,235.93,235.78,1.2684]
[1732100981632,2.32,235.92,235.77,10.33895755]
[1732100982533,2.32,235.92,235.74,2.32]
[1732100982534,2.32,235.92,235.8,10.33895755]
[1732100982732,2.32,235.92,235.78,16.55480775]
[1732100983630,2.32,235.92,235.79,1.3098]
[1732100985859,16.55480775,235.9,235.71,2.32]
[1732100986097,16.55480775,235.9,235.72,1.3098]
[1732100986334,2.32,235.92,235.74,16.55480775]
[1732100986560,2.32,235.91,235.78,16.55480775]
[1732100987179,2.32,235.93,235.78,16.55480775]
[1732100987350,3.6137,235.95,235.82,16.55480775]
[1732100987647,3.6137,235.95,235.83,1.22]
[1732100988234,2.32,235.95,235.83,3.54]
[1732100989110,1.2611,236.02,235.86,16.55480775]
[1732100989404,3.5811,236.02,235.86,16.55480775]
[1732100991633,3.5811,236.02,235.84,2.32]
[1732100992338,3.5811,236.02,235.83,1.22]
[1732100992568,3.5811,236.02,235.83,3.54]
[1732100993253,3.5811,236.02,235.83,1.22]
[1732100994243,1.2611,236.02,235.83,1.22]
[1732100994465,2.32,236.01,235.83,1.22]
[1732100994744,2.32,236.01,235.88,16.55480775]
[1732100995047,2.32,236.01,235.89,2.32]
[1732100995288,1.2611,236.02,235.89,2.32]
[1732100995439,2.32,236.01,235.89,2.32]
[1732100995639,2.32,236.01,235.89,3.5137]
[1732100996733,47.05480775,236.08,235.89,3.5137]
[1732100997045,2.28,236.07,235.92,16.55480775]
[1732100997342,2.28,236.07,235.93,1.2026]
[1732101001175,2.28,236.07,235.94,2.28]
[1732101002783,2.28,236.07,235.96,10.33297441]
[1732101003559,2.28,236.07,235.93,11.53557441]
[1732101003740,10.33297441,236.06,235.93,1.2026]
[1732101004889,2.4589,236.11,235.99,10.33297441]
[1732101005058,2.28,236.1,235.99,10.33297441]
[1732101005395,10.33297441,236.18,236.02,10.33297441]
[1732101005536,2.28,236.17,236.02,10.33297441]
[1732101006114,10.33297441,236.15,236.0,2.28]
[1732101006972,10.33297441,236.15,235.99,10.33297441]
[1732101007258,3.7525,236.22,235.94,10.33297441]
[1732101007259,10.33297441,236.12,235.94,10.33297441]
[1732101007471,10.33297441,236.08,235.94,10.33297441]
[1732101007746,2.28,236.07,235.94,10.33297441]
[1732101009696,2.28,236.07,235.97,10.33297441]
[1732101009880,3.7525,236.11,235.97,10.33297441]
[1732101010081,4.7185,236.11,236.0,10.33297441]
[1732101010261,4.7185,236.11,236.0,12.61297441]
[1732101011348,2.28,236.11,236.0,12.61297441]
[1732101011548,2.28,236.11,236.03,10.33297441]
[1732101011758,2.6202,236.21,236.03,10.33297441]
[1732101011759,10.33297441,236.2,236.03,10.33297441]
[1732101011946,2.28,236.19,236.03,10.33297441]
[1732101012155,2.28,236.18,236.06,10.33297441]
[1732101012550,2.28,236.18,236.04,1.24]
[1732101013365,10.33297441,236.17,236.0,10.33297441]
[1732101015260,2.28,236.18,236.03,10.33297441]
[1732101015851,2.28,236.18,236.06,10.33297441]
[1732101016355,2.6202,236.21,236.06,10.33297441]
[1732101016593,2.28,236.2,236.09,10.33297441]
[1732101016863,2.28,236.2,236.12,10.33297441]
[1732101017061,2.28,236.22,236.12,10.33297441]
[1732101018941,2.4513,236.27,236.12,10.33297441]
[1732101019087,4.7313,236.27,236.15,10.33297441]
[1732101019526,4.7313,236.27,236.18,10.33297441]
[1732101019679,3.5055,236.27,236.18,10.33297441]
[1732101019991,2.28,236.27,236.21,10.33297441]
[1732101020233,2.5226,236.37,236.21,10.33297441]
[1732101020234,2.28,236.33,236.21,10.33297441]
[1732101020723,2.28,236.33,236.24,10.33297441]
[1732101021787,1.2255,236.36,236.27,10.33297441]
[1732101021795,2.28,236.39,236.27,10.33297441]
[1732101022121,2.28,236.38,236.27,10.33297441]
[1732101022365,10.33297441,236.35,236.18,2.5391]
[1732101022566,10.33297441,236.32,236.17,10.33297441]
[1732101022719,3.0,236.31,236.11,19.50826878]
[1732101023665,3.0,236.31,236.15,16.50826878]
[1732101024115,3.0,236.31,236.16,1.2486]
[1732101024963,3.0,236.31,236.19,16.50826878]
[1732101025160,4.2429,236.34,236.19,16.50826878]
[1732101025562,3.0,236.34,236.19,16.50826878]
[1732101026777,3.7927,236.39,236.23,16.50826878]
[1732101027277,6.7927,236.39,236.23,16.50826878]
[1732101027572,16.50826878,236.64,236.28,16.50826878]
[1732101027982,16.50826878,236.56,236.37,16.50826878]
[1732101028167,3.0,236.55,236.37,16.50826878]
[1732101031893,16.50826878,236.52,236.33,16.50826878]
[1732101032078,1.2644,236.51,236.29,22.02576878]
[1732101032722,2.2644,236.51,236.29,22.02576878]
[1732101035061,2.2644,236.51,236.29,5.5175]
[1732101035584,16.50826878,236.48,236.29,2.5175]
[1732101035766,16.50826878,236.44,236.24,16.50826878]
[1732101035993,2.4054,236.43,236.24,16.50826878]
[1732101036215,16.50826878,236.36,236.17,1.3113]
[1732101036372,4.2308,236.35,236.17,1.3113]
[1732101036653,1.2308,236.35,236.19,16.50826878]
[1732101036801,3.0,236.34,236.19,19.50826878]
[1732101038313,1.2308,236.42,236.23,16.50826878]
[1732101038573,3.0,236.41,236.27,16.50826878]
[1732101040743,3.0,236.41,236.19,3.0]
[1732101040744,3.0,236.41,236.23,16.50826878]
[1732101042895,3.0,236.41,236.16,16.50826878]
[1732101042896,12.69,236.23,236.01,404.8898]
[1732101043099,16.50826878,236.06,236.01,400.79387978]
[1732101044427,16.50826878,236.06,236.01,398.81967978]
[1732101046577,16.50826878,236.06,236.01,396.84537978]
[1732101047094,16.50826878,236.06,236.01,394.87107978]
[1732101047275,16.50826878,236.02,236.01,394.87107978]
[1732101047476,19.50826878,236.02,236.01,390.92187978]
[1732101049949,19.50826878,236.02,236.01,320.83836554]
[1732101052994,19.50826878,236.02,236.01,250.7548513]
[1732101053707,2.9,236.02,236.01,250.7548513]
[1732101053881,1.0,236.05,236.01,250.7548513]